bitfinex-derivatives/quotes_ETHF0:USTF0_20260310
["timestamp","ask_amount","ask_price","bid_price","bid_amount"]
[1773185028012,0.48464301,2031.1,2030.4,0.56866084]
[1773185030118,2.1864374,2031.2,2030.4,0.56866084]
[1773185030321,2.67188922,2031.2,2030.4,0.56866084]
[1773185030718,0.48545182,2031.1,2030.4,0.56866084]
[1773185031919,2.43097957,2031.0,2030.4,0.56866084]
[1773185032114,0.24615,2031.2,2030.6,0.56458475]
[1773185032516,0.24615,2031.2,2030.8,0.56458475]
[1773185034113,0.49655217,2031.4,2030.8,0.56458475]
[1773185034318,0.0058673,2031.4,2030.8,0.56458475]
[1773185035222,0.49552859,2031.4,2030.9,0.56458475]
[1773185037927,0.0058673,2031.4,2030.9,0.56458475]
[1773185040323,0.49699062,2031.4,2030.9,0.56458475]
[1773185042127,0.49192289,2031.2,2030.9,0.56458475]
[1773185043932,0.73629,2031.3,2030.9,0.56458475]
[1773185044830,0.24613,2031.3,2030.9,0.56458475]
[1773185046134,0.48958954,2031.2,2030.9,0.56458475]
[1773185046334,0.73571954,2031.3,2030.9,0.56458475]
[1773185046732,0.24613,2031.3,2030.9,0.56458475]
[1773185046927,0.0058673,2031.4,2030.9,0.56458475]
[1773185047633,0.24613,2031.3,2030.9,0.56458475]
[1773185048437,0.8431094,2031.3,2030.9,0.56458475]
[1773185049426,0.5969794,2031.1,2030.7,0.56458475]
[1773185051941,0.24613,2031.3,2030.7,0.56458475]
[1773185052135,0.8431094,2031.3,2030.7,0.56458475]
[1773185057941,0.24613,2031.3,2030.7,0.56458475]
[1773185059939,0.59356723,2031.4,2030.7,0.56458475]
[1773185060741,0.0058673,2031.4,2030.7,0.56458475]
[1773185060943,0.83377993,2031.7,2030.7,0.56458475]
[1773185061137,0.58769993,2031.6,2030.7,0.56458475]
[1773185061942,0.59305645,2031.6,2030.7,0.56458475]
[1773185063849,0.00535652,2031.6,2030.7,0.56458475]
[1773185064349,0.59305645,2031.6,2030.7,0.56458475]
[1773185067748,0.00535652,2031.6,2030.9,0.56831565]
[1773185067948,0.24608,2031.7,2030.9,0.56831565]
[1773185068751,0.58769993,2031.9,2030.9,0.56831565]
[1773185068951,0.59201584,2031.9,2030.9,0.56831565]
[1773185069547,0.00431591,2031.9,2031.2,0.56831565]
[1773185069846,0.00431591,2031.9,2031.4,0.56831565]
[1773185070043,0.00431591,2031.9,2031.4,0.57178615]
[1773185071551,0.58769993,2032.1,2031.4,0.57178615]
[1773185071749,0.83372993,2032.2,2031.4,0.57178615]
[1773185072149,0.58769993,2032.1,2031.4,0.57178615]
[1773185072552,0.59269486,2032.1,2031.6,0.56831565]
[1773185072853,0.00499493,2032.1,2031.6,0.56831565]
[1773185073255,0.59269486,2032.1,2031.6,0.56831565]
[1773185074154,0.00499493,2032.1,2031.6,0.56831565]
[1773185075353,0.59269486,2032.1,2031.6,0.56831565]
[1773185075752,0.59269486,2032.1,2031.7,8.203]
[1773185075951,0.59269486,2032.1,2031.7,8.77131565]
[1773185077454,0.00499493,2032.1,2031.8,0.56831565]
[1773185077854,0.58769993,2032.3,2031.8,0.56831565]
[1773185078257,0.83366993,2032.6,2031.8,0.56831565]
[1773185078552,0.58769993,2032.5,2031.8,0.56831565]
[1773185078854,0.59404323,2032.5,2031.8,0.56831565]
[1773185081155,0.59404323,2032.5,2031.9,8.212]
[1773185081557,0.59404323,2032.5,2032.0,0.56831565]
[1773185085564,0.24593,2033.0,2032.0,0.56831565]
[1773185085758,0.58769993,2032.9,2032.3,0.56831565]
[1773185085957,0.58769993,2032.9,2032.5,0.56831565]
[1773185086761,0.59316304,2032.9,2032.2,0.56831565]
[1773185086958,0.58769993,2032.7,2032.2,8.217]
[1773185087159,0.58769993,2032.7,2032.2,8.78531565]
[1773185087761,0.58769993,2032.7,2032.3,0.5821328]
[1773185095369,0.00546311,2032.9,2032.3,0.5821328]
[1773185095767,0.55647856,2032.9,2032.3,0.5821328]
[1773185096166,0.55101545,2032.4,2032.0,0.60382183]
[1773185096468,0.24599,2032.5,2031.4,10.21415282]
[1773185096469,0.55101545,2032.5,2031.9,0.60382183]
[1773185096766,0.55101545,2032.3,2031.9,8.82282183]
[1773185096965,0.55101545,2032.3,2032.0,0.60382183]
[1773185097169,0.55101545,2032.5,2032.0,0.60382183]
[1773185097769,0.55101545,2032.5,2032.1,0.60382183]
[1773185097962,0.00546311,2032.9,2032.1,0.60382183]
[1773185098164,0.55647856,2032.9,2032.4,0.60382183]
[1773185098468,0.55101545,2032.8,2032.3,8.219]
[1773185098665,0.25141311,2032.9,2032.3,0.60382183]
[1773185098869,0.00546311,2032.9,2032.3,0.60382183]
[1773185099770,0.55647856,2032.9,2032.3,0.60382183]
[1773185100981,0.79690545,2033.4,2032.4,0.60382183]
[1773185101272,0.55101545,2033.6,2032.7,0.60382183]
[1773185101473,0.55101545,2033.6,2032.9,0.60382183]
[1773185101662,0.55101545,2033.4,2032.9,0.60382183]
[1773185101868,0.55101545,2033.2,2032.6,8.22]
[1773185102065,0.00434671,2033.4,2032.6,0.60382183]
[1773185102269,0.55101545,2033.3,2032.6,0.60382183]
[1773185103071,0.55101545,2033.3,2032.6,0.60882372]
[1773185103271,0.55101545,2033.1,2032.6,0.00500189]
[1773185103972,0.00434671,2033.4,2032.4,0.60382183]
[1773185103973,0.55101545,2032.9,2032.4,0.60382183]
[1773185104170,0.55101545,2032.9,2032.3,0.60382183]
[1773185105068,0.55101545,2032.9,2032.3,0.60947276]
[1773185105676,0.55101545,2032.7,2032.1,8.224]
[1773185105878,0.55101545,2032.7,2032.1,8.82782183]
[1773185106875,0.55101545,2032.7,2032.1,8.8330177]
[1773185108078,0.55101545,2032.7,2032.2,0.60382183]
[1773185109479,0.55101545,2032.5,2032.1,0.00519587]
[1773185109678,0.55101545,2032.5,2031.9,8.83182183]
[1773185110582,0.55101545,2032.5,2031.9,8.83769793]
[1773185111179,0.55101545,2032.5,2032.0,0.60382183]
[1773185111382,0.24597,2032.6,2032.0,0.60382183]
[1773185111582,0.79698545,2032.6,2032.0,0.60382183]
[1773185112984,0.55101545,2033.0,2032.0,0.60382183]
[1773185116892,0.55101545,2032.8,2032.0,0.60382183]
[1773185117193,0.55101545,2032.4,2032.0,0.60382183]
[1773185117595,0.55101545,2032.4,2031.9,0.0058761]
[1773185118691,0.55101545,2032.4,2031.9,0.60969793]
[1773185121591,0.84064046,2032.5,2031.9,0.60969793]
[1773185121794,0.24599,2032.5,2031.9,0.60969793]
[1773185123394,0.24594,2032.9,2031.9,0.60969793]
[1773185123588,0.84059046,2032.9,2031.9,0.60969793]
[1773185124598,0.59465046,2032.8,2031.9,0.60969793]
[1773185124801,0.24594,2032.9,2031.9,0.60969793]
[1773185125004,0.59465046,2033.0,2031.9,0.60969793]
[1773185125299,0.24589,2033.3,2032.2,0.57892207]
[1773185125300,0.59465046,2033.2,2032.2,0.57892207]
[1773185125497,0.59465046,2033.2,2032.4,0.57892207]
[1773185126302,0.24589,2033.3,2032.4,0.57892207]
[1773185126796,0.84054046,2033.3,2032.4,0.57892207]
[1773185127298,0.59465046,2033.3,2032.4,0.57892207]
[1773185127602,0.59899717,2033.4,2032.4,0.57892207]
[1773185128098,0.00434671,2033.4,2032.4,0.57892207]
[1773185128302,0.59899717,2033.4,2032.4,0.57892207]
[1773185130805,0.00434671,2033.4,2032.4,0.57892207]
[1773185133004,0.59899717,2033.4,2032.4,0.57892207]
[1773185133209,0.59899717,2033.4,2032.6,0.57892207]
[1773185136210,0.59899717,2033.4,2032.8,0.57892207]
[1773185139006,0.59465046,2033.3,2032.8,0.57892207]
[1773185139207,0.59465046,2033.3,2032.6,8.83192207]
[1773185140016,0.59899717,2033.4,2032.7,0.57892207]
[1773185145418,0.59899717,2033.4,2032.8,8.252]
[1773185145618,0.59899717,2033.4,2032.8,8.83092207]
[1773185147917,0.59899717,2033.4,2032.9,0.58112203]
[1773185152016,0.58906028,2033.2,2032.9,0.58112203]
[1773185152219,0.58906028,2033.2,2032.6,0.5896688]
[1773185152420,0.58906028,2033.2,2032.5,8.8376688]
[1773185153017,2.18108931,2033.3,2032.2,10.80035112]
[1773185153018,0.58906028,2032.6,2032.2,10.80035112]
[1773185153317,0.58906028,2032.6,2032.2,0.5896688]
[1773185154019,0.58906028,2032.6,2032.1,8.248]
[1773185154220,0.58906028,2032.6,2032.1,8.8376688]
[1773185154419,0.58906028,2032.6,2032.2,0.5896688]
[1773185154619,0.58906028,2032.8,2032.2,0.5896688]
[1773185159126,0.58906028,2032.9,2032.2,0.5896688]
[1773185162127,0.58906028,2032.9,2032.2,8.8476688]
[1773185162627,0.58906028,2032.5,2032.0,8.8476688]
[1773185163227,0.58906028,2032.5,2032.1,0.5896688]
[1773185165531,0.58906028,2032.9,2032.1,0.5896688]
[1773185166828,0.58906028,2032.7,2032.1,0.5896688]
[1773185176834,0.58906028,2032.7,2032.1,8.286]
[1773185177040,0.58906028,2032.5,2032.0,0.5896688]
[1773185177234,0.58906028,2032.5,2032.0,8.8766688]
[1773185178043,0.58906028,2032.3,2032.0,8.8766688]
[1773185178242,0.58906028,2032.3,2032.0,8.287]
[1773185178439,0.58906028,2032.3,2032.0,8.8766688]
[1773185178643,0.246,2032.4,2032.1,0.5896688]
[1773185179241,0.83506028,2032.4,2032.1,0.5896688]
[1773185189350,0.55955388,2032.3,2032.0,8.84345218]
[1773185195553,0.55955388,2032.3,2032.0,0.55645218]
[1773185195753,0.55955388,2032.3,2032.0,8.94245218]
[1773185196859,0.55955388,2032.3,2032.0,0.55645218]
[1773185197059,0.55955388,2032.3,2032.0,8.398]
[1773185197458,0.55955388,2032.3,2032.0,8.95445218]
[1773185199960,0.55955388,2032.3,2032.1,0.55645218]
[1773185200458,0.80555388,2032.4,2032.1,0.55645218]
[1773185200658,0.80555388,2032.4,2032.0,8.432]
[1773185200659,0.55955388,2032.3,2032.0,8.98845218]
[1773185201160,0.80555388,2032.4,2032.1,0.55645218]
[1773185201658,0.55955388,2032.3,2032.0,8.98845218]
[1773185208066,0.59759668,2032.1,2031.5,0.57825509]
[1773185208366,0.59759668,2032.1,2031.6,0.57825509]
[1773185209158,0.59759668,2032.1,2031.6,0.58283533]
[1773185211267,0.24602,2032.2,2031.6,0.58283533]
[1773185211465,0.5631803,2032.4,2031.8,0.59719774]
[1773185212568,0.5631803,2032.4,2032.0,0.59719774]
[1773185214071,0.5631803,2032.2,2032.0,0.0058761]
[1773185216271,0.5631803,2032.2,2031.7,9.19419774]
[1773185216563,0.5631803,2032.2,2031.8,0.59719774]
[1773185217169,0.8091903,2032.3,2031.8,0.59719774]
[1773185217369,0.5631803,2032.2,2031.9,0.60307384]
[1773185217769,0.8091903,2032.3,2031.9,0.60307384]
[1773185218269,0.24601,2032.3,2031.9,0.60307384]
[1773185219174,0.8091903,2032.3,2031.9,0.60307384]
[1773185219474,0.5631803,2032.2,2031.9,0.60307384]
[1773185219674,0.8091903,2032.3,2031.9,0.60307384]
[1773185221575,0.5631803,2032.2,2031.9,0.60307384]
[1773185222071,0.8092103,2032.1,2031.9,0.0058761]
[1773185222274,0.5631803,2032.0,2031.6,0.60177798]
[1773185222474,0.5631803,2032.0,2031.8,0.0058761]
[1773185222674,0.8092103,2032.1,2031.6,0.60177798]
[1773185222875,0.5631803,2032.4,2031.6,0.60177798]
[1773185223076,0.5631803,2032.4,2031.7,0.59719774]
[1773185223373,0.5631803,2032.8,2032.0,0.59719774]
[1773185223675,0.5631803,2032.8,2032.2,0.59719774]
[1773185224274,0.246,2032.4,2031.6,10.21526256]
[1773185224473,0.5631803,2032.3,2031.8,0.59719774]
[1773185224673,0.246,2032.4,2031.8,0.59719774]
[1773185224674,0.8091803,2032.4,2031.8,0.59719774]
[1773185226878,0.5631803,2032.3,2031.8,0.59719774]
[1773185227077,0.5631803,2032.3,2031.9,0.59719774]
[1773185232976,0.5631803,2032.3,2031.7,0.59719774]
[1773185233281,0.5631803,2032.3,2031.8,0.59719774]
[1773185238587,0.246,2032.4,2031.8,0.59719774]
[1773185239687,0.8192809,2032.4,2031.8,0.59719774]
[1773185240094,0.5732809,2032.3,2031.8,0.59719774]
[1773185242390,0.246,2032.4,2031.8,0.59719774]
[1773185242786,0.5732809,2032.8,2032.2,0.57220914]
[1773185243899,0.24595,2032.9,2032.2,0.57220914]
[1773185244394,0.24595,2032.9,2032.3,1.93715702]
[1773185244593,0.5732809,2033.1,2032.4,0.57220914]
[1773185244992,0.5732809,2033.1,2032.6,0.57220914]
[1773185245897,0.5732809,2033.1,2032.3,0.57220914]
[1773185246097,0.5732809,2033.1,2032.6,0.57220914]
[1773185246296,0.8191709,2033.3,2032.8,0.57220914]
[1773185246498,0.57762761,2033.4,2033.0,0.57220914]
[1773185250407,0.5732809,2033.5,2033.0,0.57220914]
[1773185251607,0.57677891,2033.5,2033.0,0.57220914]
[1773185254711,0.57677891,2033.5,2032.8,0.57220914]
[1773185257512,0.5732809,2033.3,2032.8,0.57220914]
[1773185257812,0.5732809,2033.1,2032.4,0.57220914]
[1773185258213,0.5732809,2032.9,2032.4,0.57220914]
[1773185260913,0.5732809,2032.5,2031.8,0.57220914]
[1773185261119,0.5732809,2032.2,2031.6,0.57678938]
[1773185261516,0.5732809,2032.0,2031.6,0.57223326]
[1773185261716,0.8193109,2032.1,2031.6,0.57223326]
[1773185262117,0.5732809,2032.0,2031.6,0.57223326]
[1773185262316,0.24603,2032.1,2031.6,0.57223326]
[1773185262512,0.82472575,2032.1,2031.6,0.57223326]
[1773185263620,0.25144485,2032.1,2031.6,0.57223326]
[1773185268417,0.82079395,2032.5,2031.8,0.57032673]
[1773185268622,0.57480395,2032.2,2031.6,2.412e-05]
[1773185269623,0.5803396,2032.2,2031.6,2.412e-05]
[1773185272320,0.5803396,2032.2,2031.6,0.57840175]
[1773185281127,0.57187043,2031.8,2031.6,2.412e-05]
[1773185281330,0.57187043,2031.6,2031.2,0.57837763]
[1773185281528,0.57187043,2031.6,2030.9,0.57837763]
[1773185282331,0.57187043,2031.6,2030.9,0.5841711]
[1773185287434,0.57187043,2031.6,2031.0,0.57837763]
[1773185288133,0.57187043,2031.4,2030.9,0.5841711]
[1773185293145,0.57187043,2031.4,2030.9,0.00579347]
[1773185293342,0.57187043,2031.2,2030.9,0.00579347]
[1773185293542,0.57187043,2031.2,2030.8,0.57837763]
[1773185293742,0.57187043,2031.2,2030.7,9.27837763]
[1773185293943,0.57187043,2031.2,2030.8,0.57837763]
[1773185294441,0.57187043,2031.2,2030.8,0.58264877]
[1773185295245,0.57187043,2031.3,2030.8,0.58264877]
[1773185295437,1.93715702,2031.5,2030.8,0.58264877]
[1773185295643,0.57187043,2031.5,2030.9,0.57837763]
[1773185300149,0.57062216,2031.6,2031.1,0.54497392]
[1773185305854,0.24608,2031.7,2031.1,0.54497392]
[1773185306059,0.81670216,2031.7,2031.1,0.54497392]
[1773185306249,0.57062216,2031.8,2031.1,0.54497392]
[1773185307654,0.57062216,2032.0,2031.1,0.54497392]
[1773185316255,0.57062216,2032.0,2031.1,2.48340389]
[1773185316464,0.24604,2032.1,2031.2,0.54497392]
[1773185316663,0.24604,2032.1,2031.4,0.54497392]
[1773185316964,0.81666216,2032.1,2031.4,0.54497392]
[1773185319060,0.00553565,2032.2,2031.4,0.54497392]
[1773185319266,0.57062216,2032.1,2031.4,0.54497392]
[1773185319454,0.57062216,2032.1,2031.6,0.54497392]
[1773185320261,0.00553565,2032.2,2031.6,0.54497392]
[1773185325666,0.00553565,2032.2,2031.7,0.54497392]
[1773185326766,0.57062216,2032.4,2031.7,0.54497392]
[1773185327570,0.24597,2032.7,2031.7,0.54497392]
[1773185327767,0.58690448,2032.6,2031.7,0.54497392]
[1773185335372,0.25210836,2032.7,2031.7,0.54497392]
[1773185335373,0.58246267,2032.4,2031.7,0.54497392]
[1773185341675,0.58246267,2032.2,2031.7,0.54497392]
[1773185341875,0.58246267,2032.2,2031.8,9.37968517]
[1773185342081,0.58246267,2032.2,2031.8,9.38068517]
[1773185342279,0.58246267,2032.2,2031.9,0.58868517]
[1773185344179,0.00613836,2032.7,2031.9,0.58868517]
[1773185344383,0.58246267,2032.6,2031.9,0.58868517]
[1773185346087,0.58246267,2032.6,2032.0,9.40868517]
[1773185346287,0.58246267,2032.6,2032.0,9.40968517]
[1773185351498,0.58246267,2032.6,2032.0,9.43568517]
[1773185354399,0.58246267,2032.6,2032.1,0.58868517]
[1773185362508,0.00613836,2032.7,2032.1,0.58868517]
[1773185363202,0.60422772,2032.7,2032.1,0.58868517]
[1773185364402,0.59808936,2032.5,2031.9,0.5430032]
[1773185364608,0.59808936,2032.5,2032.0,9.4350032]
[1773185364803,0.59808936,2032.5,2032.1,8.893]
[1773185365004,0.59808936,2032.5,2032.1,9.4360032]
[1773185367306,0.59808936,2032.5,2032.1,0.5430032]
[1773185368304,0.00613836,2032.7,2032.3,0.5430032]
[1773185368606,0.00613836,2032.7,2032.3,0.54868868]
[1773185368805,0.60422772,2032.7,2032.3,0.54868868]
[1773185369605,0.00613836,2032.7,2032.3,0.54868868]
[1773185369906,0.59808936,2032.9,2032.5,0.5430032]
[1773185370310,0.58736207,2032.9,2032.5,0.5430032]
[1773185370710,0.59245456,2032.9,2032.5,0.5430032]
[1773185374715,0.00509249,2032.9,2032.5,0.5430032]
[1773185375312,0.60318185,2032.9,2032.5,0.5430032]
[1773185375611,0.00509249,2032.9,2032.5,0.5430032]
[1773185375813,0.60318185,2032.9,2032.5,0.5430032]
[1773185377011,0.00509249,2032.9,2032.5,0.5430032]
[1773185377311,0.59808936,2033.2,2032.7,0.5430032]
[1773185378217,0.60381794,2033.2,2032.7,0.5430032]
[1773185384127,0.60381794,2033.2,2032.5,0.5430032]
[1773185386029,0.60381794,2033.2,2032.6,8.931]
[1773185386221,0.60381794,2033.2,2032.6,9.4740032]
[1773185388429,0.60381794,2033.2,2032.7,0.58630338]
[1773185390230,0.00572858,2033.2,2032.7,0.58630338]
[1773185390729,0.55222053,2033.2,2032.7,0.58630338]
[1773185396533,0.24585,2033.6,2033.0,1.93664996]
[1773185396738,0.54649195,2033.5,2032.8,0.56720583]
[1773185397037,0.54649195,2033.4,2032.8,0.56720583]
[1773185397530,0.5509351,2033.4,2032.8,0.56720583]
[1773185399737,0.54649195,2033.2,2032.8,0.56720583]
[1773185399937,0.54649195,2033.2,2032.7,9.51420583]
[1773185400336,0.54649195,2033.2,2032.8,0.56720583]
[1773185401337,0.54649195,2033.0,2032.4,0.56720583]
[1773185401533,0.54649195,2032.8,2032.5,0.56720583]
[1773185402632,0.54649195,2032.8,2032.4,0.56720583]
[1773185404532,2.48314191,2033.3,2032.4,2.50385579]
[1773185404739,0.54649195,2033.3,2032.9,0.56720583]
[1773185404941,0.54649195,2033.3,2032.7,0.56720583]
[1773185407136,0.54649195,2033.1,2032.5,0.56720583]
[1773185407443,0.79241195,2033.0,2032.5,0.56720583]
[1773185407837,0.54649195,2032.9,2032.5,0.56720583]
[1773185408139,0.79241195,2033.0,2032.5,0.56720583]
[1773185408746,0.54649195,2032.9,2032.5,0.56720583]
[1773185410346,0.54649195,2032.9,2032.3,0.57289131]
[1773185410636,0.24595,2032.8,2032.3,9.54989131]
[1773185410841,0.54649195,2032.7,2032.3,9.54989131]
[1773185411041,0.54649195,2032.7,2032.4,0.56720583]
[1773185412244,0.79244195,2032.8,2032.4,0.56720583]
[1773185412442,0.54649195,2033.1,2032.4,0.56720583]
[1773185412643,0.54649195,2033.1,2032.3,10.91933544]
[1773185412644,0.54649195,2033.1,2032.6,0.56720583]
[1773185412944,0.24589,2033.3,2032.8,0.56720583]
[1773185413146,0.79238195,2033.3,2032.8,0.56720583]
[1773185414647,0.54649195,2033.2,2032.8,0.56720583]
[1773185414847,0.54649195,2033.2,2032.9,0.56720583]
[1773185415847,0.79238195,2033.3,2032.9,0.56720583]
[1773185417548,0.54649195,2033.2,2032.9,0.56720583]
[1773185419945,0.54649195,2033.2,2032.8,8.988]
[1773185420152,0.59657615,2033.1,2032.5,9.56018004]
[1773185420348,0.59657615,2033.1,2032.6,0.56018004]
[1773185421252,0.59657615,2032.9,2032.5,9.0]
[1773185421452,0.59657615,2032.9,2032.5,9.56018004]
[1773185422850,0.59657615,2032.9,2032.6,0.56018004]
[1773185427355,0.59657615,2032.9,2032.5,9.56018004]
[1773185428554,0.59657615,2033.2,2032.6,0.56018004]
[1773185430654,0.59657615,2033.2,2032.5,9.56018004]
[1773185431258,0.59657615,2033.2,2032.6,0.56018004]
[1773185432760,0.59657615,2032.8,2032.3,0.56586552]
[1773185433162,0.24594,2032.9,2032.3,0.56586552]
[1773185433562,0.59657615,2033.0,2032.3,0.56586552]
[1773185433762,0.59657615,2033.1,2032.3,0.56586552]
[1773185434359,0.6010193,2033.4,2032.6,0.56018004]
[1773185434658,0.59657615,2033.3,2032.8,0.56018004]
[1773185434862,0.59657615,2033.3,2033.0,0.56018004]
[1773185435460,0.25032315,2033.4,2033.0,0.56018004]
[1773185435461,0.8468993,2033.4,2033.0,0.56018004]
[1773185435854,0.00444315,2033.4,2033.0,0.56018004]
[1773185436058,0.59657615,2033.8,2033.0,0.56018004]
[1773185437063,0.60251541,2033.8,2033.0,0.56018004]
[1773185440063,0.60251541,2033.8,2033.0,9.61418004]
[1773185440064,0.59657615,2033.6,2033.0,9.61418004]
[1773185440259,0.59657615,2033.4,2033.0,0.56018004]
[1773185440861,0.24586,2033.5,2033.0,0.56018004]
[1773185441366,0.59657615,2033.4,2033.0,0.56018004]
[1773185442364,0.59657615,2033.4,2032.9,0.56018004]
[1773185445359,0.59657615,2033.0,2032.7,0.56018004]
[1773185445563,0.59657615,2033.0,2032.6,0.56018004]
[1773185445964,0.59657615,2033.0,2032.5,0.56018004]
[1773185448967,0.57696182,2032.8,2032.4,9.059]
[1773185449162,0.57696182,2032.8,2032.4,9.62451578]
[1773185449668,0.57696182,2032.8,2032.4,9.60314009]
[1773185449968,0.57696182,2032.8,2032.3,0.00568548]
[1773185449969,0.57958048,2032.6,2032.3,0.54982557]
[1773185450973,0.57958048,2032.6,2032.3,0.00568548]
[1773185451168,0.57958048,2032.6,2032.2,9.61214009]
[1773185451372,0.57958048,2032.6,2032.2,0.54414009]
[1773185452071,0.57958048,2032.6,2032.2,0.5490931]
[1773185452772,0.57958048,2032.6,2032.1,9.61514009]
[1773185453175,0.57958048,2032.6,2032.2,0.54414009]
[1773185453966,0.57958048,2032.6,2032.2,0.550214]
[1773185456075,0.57958048,2032.7,2032.2,0.550214]
[1773185457379,0.57958048,2032.5,2032.2,0.550214]
[1773185461079,0.57958048,2032.5,2032.2,0.00607391]
[1773185462080,0.57958048,2032.3,2031.4,0.54414009]
[1773185462281,0.57958048,2032.3,2031.8,0.54414009]
[1773185462482,0.57958048,2032.3,2031.9,0.54414009]
[1773185463283,0.58449292,2032.3,2031.9,0.5490018]
[1773185463776,0.246,2032.4,2031.9,0.5490018]
[1773185463980,0.57958048,2032.8,2032.0,0.54414009]
[1773185464284,0.57958048,2032.8,2032.1,9.64214009]
[1773185464973,0.58556575,2032.8,2032.1,9.64214009]
[1773185465174,0.58556575,2032.8,2032.2,0.54414009]
[1773185466684,0.00598527,2032.8,2032.2,0.54414009]
[1773185468485,0.58556575,2032.8,2032.2,0.54414009]
[1773185468984,0.00598527,2032.8,2032.2,0.54414009]
[1773185471380,6.445,2033.5,2032.2,0.54414009]
[1773185471381,4.1130364,2033.6,2032.9,0.54414009]
[1773185471582,0.57958048,2034.1,2033.3,0.54414009]
[1773185472079,0.57958048,2034.4,2033.6,0.54414009]
[1773185472283,0.82533048,2034.5,2033.8,0.54414009]
[1773185472484,0.58487557,2034.5,2033.8,0.54991832]
[1773185472691,0.00529509,2034.5,2033.8,0.54991832]
[1773185473289,0.57958048,2034.9,2033.9,0.54414009]
[1773185474391,0.58516012,2034.9,2033.9,0.54414009]
[1773185475294,0.58516012,2034.9,2034.1,0.54414009]
[1773185475494,0.57958048,2034.7,2034.1,0.54414009]
[1773185475694,0.57958048,2034.7,2034.0,0.54414009]
[1773185477796,0.57958048,2034.7,2033.9,0.54414009]
[1773185478200,0.24571,2034.8,2033.9,0.54414009]
[1773185478201,0.58516012,2034.9,2033.9,0.54414009]
[1773185478494,0.00557964,2034.9,2033.9,0.54414009]
[1773185478698,0.57958048,2035.1,2033.9,0.54414009]
[1773185478899,0.57958048,2035.8,2033.9,0.54414009]
[1773185479297,0.57958048,2035.8,2034.1,0.59562535]
[1773185479499,0.57958048,2035.8,2034.1,3.49409735]
[1773185479696,0.58372066,2035.8,2034.2,0.59562535]
[1773185484403,0.56560752,2035.6,2034.3,0.59562535]
[1773185485294,0.56560752,2036.2,2034.6,0.59562535]
[1773185486802,0.56989034,2036.2,2034.6,0.59562535]
[1773185487104,0.56560752,2036.0,2034.6,0.59562535]
[1773185487704,0.56560752,2036.0,2034.7,0.59562535]
[1773185488606,0.56560752,2036.0,2035.0,0.59562535]
[1773185492709,0.56560752,2035.8,2034.6,0.59562535]
[1773185493605,6.04102,2036.0,2034.6,0.59562535]
[1773185493606,0.56560752,2035.6,2034.6,0.59562535]
[1773185494410,0.56560752,2035.4,2034.5,0.59562535]
[1773185495014,0.24567,2035.1,2034.2,0.59562535]
[1773185495316,0.56560752,2035.0,2034.2,0.59562535]
[1773185506324,0.56560752,2034.8,2034.0,0.59562535]
[1773185507421,0.56560752,2034.6,2034.0,0.59562535]
[1773185507616,0.56560752,2034.6,2033.8,0.00577823]
[1773185507617,0.54883263,2034.4,2033.8,0.00577823]
[1773185509623,0.54927788,2034.2,2033.3,9.183]
[1773185509817,0.54927788,2033.8,2033.0,0.60108114]
[1773185510329,0.54927788,2033.8,2033.1,0.60108114]
[1773185510623,0.54927788,2033.8,2033.1,0.60737098]
[1773185514428,0.54927788,2033.9,2033.1,0.60737098]
[1773185514629,0.54927788,2034.0,2033.1,0.60737098]
[1773185516630,0.54927788,2034.2,2033.3,0.60108114]
[1773185520731,0.54927788,2034.2,2033.5,0.60108114]
[1773185520934,0.54927788,2034.5,2033.5,0.60108114]
[1773185524143,0.54927788,2034.3,2033.5,0.60108114]
[1773185527950,0.54927788,2034.1,2033.4,9.252]
[1773185528146,0.54927788,2034.1,2033.4,9.85308114]
[1773185529945,0.54927788,2034.1,2033.4,0.60108114]
[1773185530152,0.54927788,2033.9,2033.2,0.60108114]
[1773185534350,0.54927788,2033.7,2033.1,0.00628984]
[1773185534653,0.54927788,2033.5,2032.7,0.60108114]
[1773185535656,0.54927788,2033.5,2032.7,0.60543486]
[1773185536352,0.54927788,2033.3,2032.7,0.00435372]
[1773185536554,0.54927788,2033.1,2032.7,0.00435372]
[1773185536856,0.55390227,2033.1,2032.7,0.60543486]
[1773185537658,0.00462439,2033.1,2032.7,0.60543486]
[1773185537853,0.24585,2033.7,2032.7,0.60543486]
[1773185537854,0.54927788,2033.6,2032.7,0.60543486]
[1773185538758,0.55434043,2033.6,2032.7,0.60543486]
[1773185539257,0.00506255,2033.6,2032.7,0.60543486]
[1773185539451,0.00506255,2033.6,2032.8,0.5943043]
[1773185541061,0.56674125,2033.6,2032.8,0.5943043]
[1773185547059,0.5616787,2033.4,2032.4,0.5943043]
[1773185548066,0.5616787,2033.4,2032.4,0.59863373]
[1773185548667,0.24591,2033.2,2032.4,0.59863373]
[1773185548961,0.5616787,2033.1,2032.4,0.00432943]
[1773185549356,0.5616787,2033.1,2032.4,0.59863373]
[1773185550860,0.5616787,2033.3,2032.4,0.59863373]
[1773185551060,0.5616787,2033.5,2032.5,0.5943043]
[1773185551266,0.5616787,2033.5,2032.7,0.5943043]
[1773185553868,0.56674125,2033.6,2032.7,0.5943043]
[1773185558567,0.5616787,2034.2,2033.2,0.5943043]
[1773185558768,0.5616787,2034.5,2033.4,0.5943043]
[1773185559468,0.5660059,2034.5,2033.4,0.5943043]
[1773185563473,0.5660059,2034.5,2033.6,0.5943043]
[1773185563773,0.0043272,2034.5,2033.6,0.5943043]
[1773185563972,0.0043272,2034.5,2033.6,10.80498662]
[1773185564165,0.0043272,2034.5,2033.6,0.5943043]
[1773185569175,0.57261698,2034.5,2033.6,0.5943043]
[1773185572377,0.57261698,2034.5,2033.7,10.02971302]
[1773185572678,0.57261698,2034.5,2033.7,10.03071302]
[1773185573575,0.57261698,2034.5,2033.8,0.58171302]
[1773185573877,0.57261698,2034.5,2033.7,9.449]
[1773185574375,0.57261698,2034.5,2033.7,10.03071302]
[1773185577290,0.55929758,2034.3,2033.3,10.06871302]
[1773185577487,0.55929758,2034.3,2033.4,0.58171302]
[1773185582089,0.56362478,2034.5,2033.5,0.58171302]
[1773185582985,0.56362478,2034.5,2033.7,0.58171302]
[1773185586691,0.0043272,2034.5,2033.7,0.58171302]
[1773185587594,0.55929758,2035.2,2033.9,0.58171302]
[1773185587790,0.55929758,2035.2,2034.1,0.58171302]
[1773185588588,0.5651657,2035.2,2034.1,0.58663692]
[1773185595495,0.55929758,2034.8,2034.1,0.0049239]
[1773185595799,0.55929758,2034.8,2034.1,0.58663692]
[1773185603812,0.58445213,2034.6,2034.1,0.58663692]
[1773185608221,0.58445213,2035.1,2034.1,0.58663692]
[1773185608923,0.58445213,2034.7,2034.1,0.0049239]
[1773185609419,0.58445213,2034.7,2034.1,0.54827295]
[1773185611324,0.58445213,2035.1,2034.1,0.54827295]
[1773185617430,0.58445213,2034.9,2034.1,0.54827295]
[1773185617627,0.58445213,2034.8,2034.1,0.54827295]
[1773185617824,0.58445213,2034.8,2034.2,0.54334905]
[1773185620429,1.93245281,2035.1,2034.1,1.93737671]
[1773185620430,0.58445213,2035.1,2034.6,0.54334905]
[1773185621330,0.58445213,2035.0,2034.2,0.54334905]